[Event "Titled Tuesday Blitz November 9 2021"]
[White "Mihok, Oliver"]
[Black "Djordjevic, Vuk"]
[WhiteFideId "728012"]
[BlackFideId "902098"]
[WhiteElo "2376"]
[BlackElo "2463"]
[Result "0-1"]
[Round "09"]
[TimeControl "180+1"]
[Date "2021.11.09"]
[WhiteClock "0:00:01"]
[BlackClock "0:00:04"]

1. Nf3 {[%clk 0:03:00]}  Nf6 {[%clk 0:02:59]} 2. g3 {[%clk 0:02:58]}  e6 {[%clk 0:03:00]} 3. Bg2 {[%clk 0:02:58]}  d5 {[%clk 0:03:00]} 4. O-O {[%clk 0:02:58]}  Be7 {[%clk 0:03:01]} 5. b3 {[%clk 0:02:57]}  O-O {[%clk 0:03:01]} 6. c4 {[%clk 0:02:57]}  c6 {[%clk 0:02:56]} 7. Bb2 {[%clk 0:02:56]}  a5 {[%clk 0:02:56]} 8. d3 {[%clk 0:02:48]}  b6 {[%clk 0:02:56]} 9. a3 {[%clk 0:02:46]}  Ba6 {[%clk 0:02:55]} 10. Nbd2 {[%clk 0:02:44]}  Ra7 {[%clk 0:02:53]} 11. Rc1 {[%clk 0:02:42]}  Nbd7 {[%clk 0:02:45]} 12. Rc2 {[%clk 0:02:41]}  b5 {[%clk 0:02:37]} 13. Nd4 {[%clk 0:02:37]}  Nb8 {[%clk 0:02:22]} 14. cxb5 {[%clk 0:02:24]}  cxb5 {[%clk 0:02:21]} 15. Qa1 {[%clk 0:02:17]}  Rc7 {[%clk 0:02:15]} 16. Rfc1 {[%clk 0:02:16]}  Rxc2 {[%clk 0:02:15]} 17. Rxc2 {[%clk 0:02:17]}  Qd7 {[%clk 0:02:15]} 18. Qc1 {[%clk 0:02:14]}  Bd6 {[%clk 0:02:11]} 19. h4 {[%clk 0:01:49]}  Rc8 {[%clk 0:02:10]} 20. Rxc8+ {[%clk 0:01:48]}  Bxc8 {[%clk 0:02:07]} 21. Nxb5 {[%clk 0:01:47]}  Be7 {[%clk 0:02:04]} 22. a4 {[%clk 0:01:35]}  Ba6 {[%clk 0:01:54]} 23. Nf3 {[%clk 0:01:25]}  Bxb5 {[%clk 0:01:43]} 24. Ne5 {[%clk 0:01:20]}  Qb7 {[%clk 0:01:41]} 25. axb5 {[%clk 0:01:20]}  Qxb5 {[%clk 0:01:33]} 26. Qc7 {[%clk 0:01:12]}  Nfd7 {[%clk 0:01:11]} 27. Qc8+ {[%clk 0:01:01]}  Nf8 {[%clk 0:01:03]} 28. Bc3 {[%clk 0:00:49]}  f6 {[%clk 0:00:53]} 29. Nf3 {[%clk 0:00:40]}  Nc6 {[%clk 0:00:53]} 30. Bh3 {[%clk 0:00:35]}  Kf7 {[%clk 0:00:53]} 31. Nd4 {[%clk 0:00:21]}  Nxd4 {[%clk 0:00:51]} 32. Bxd4 {[%clk 0:00:22]}  Qxb3 {[%clk 0:00:49]} 33. Qc7 {[%clk 0:00:18]}  Qb4 {[%clk 0:00:45]} 34. Bc3 {[%clk 0:00:15]}  Qb1+ {[%clk 0:00:44]} 35. Kg2 {[%clk 0:00:15]}  a4 {[%clk 0:00:44]} 36. Bd4 {[%clk 0:00:11]}  Qb4 {[%clk 0:00:41]} 37. Qa7 {[%clk 0:00:09]}  a3 {[%clk 0:00:41]} 38. e3 {[%clk 0:00:08]}  Qb5 {[%clk 0:00:32]} 39. Bg4 {[%clk 0:00:04]}  Nd7 {[%clk 0:00:18]} 40. Bh5+ {[%clk 0:00:02]}  g6 {[%clk 0:00:19]} 41. Be2 {[%clk 0:00:02]}  Nb8 {[%clk 0:00:16]} 42. Bf3 {[%clk 0:00:01]}  Nc6 {[%clk 0:00:15]} 43. Qa8 {[%clk 0:00:01]}  Nb8 {[%clk 0:00:04]} 0-1


[Site "https://www.chess.com"]

[Event "Titled Tuesday Blitz November 9 2021"]
[White "Pranav, V"]
[Black "Alavi, Sayed Javad"]
[WhiteFideId "25060783"]
[BlackFideId "12500607"]
[WhiteElo "2351"]
[BlackElo "2495"]
[Result "1-0"]
[Round "09"]
[TimeControl "180+1"]
[Date "2021.11.09"]
[WhiteClock "0:00:44"]
[BlackClock "0:00:12"]

1. e4 {[%clk 0:03:00]}  e5 {[%clk 0:02:58]} 2. Nf3 {[%clk 0:03:00]}  Nf6 {[%clk 0:02:58]} 3. Nxe5 {[%clk 0:02:58]}  d6 {[%clk 0:02:59]} 4. Nf3 {[%clk 0:02:57]}  Nxe4 {[%clk 0:02:59]} 5. Bd3 {[%clk 0:02:58]}  Nc5 {[%clk 0:02:54]} 6. Be2 {[%clk 0:02:58]}  d5 {[%clk 0:02:53]} 7. d4 {[%clk 0:02:57]}  Ne4 {[%clk 0:02:52]} 8. O-O {[%clk 0:02:57]}  Be7 {[%clk 0:02:46]} 9. c4 {[%clk 0:02:56]}  O-O {[%clk 0:02:42]} 10. Nc3 {[%clk 0:02:57]}  Nxc3 {[%clk 0:02:41]} 11. bxc3 {[%clk 0:02:55]}  dxc4 {[%clk 0:02:38]} 12. Bxc4 {[%clk 0:02:54]}  Nc6 {[%clk 0:02:29]} 13. h3 {[%clk 0:02:51]}  Bf5 {[%clk 0:02:27]} 14. Re1 {[%clk 0:02:49]}  h6 {[%clk 0:02:19]} 15. a4 {[%clk 0:02:47]}  a6 {[%clk 0:01:42]} 16. a5 {[%clk 0:02:43]}  Bd6 {[%clk 0:01:41]} 17. Qb3 {[%clk 0:02:38]}  Rb8 {[%clk 0:01:40]} 18. Ra2 {[%clk 0:02:30]}  Qf6 {[%clk 0:01:40]} 19. Be3 {[%clk 0:02:20]}  Bxh3 {[%clk 0:01:37]} 20. Bd5 {[%clk 0:02:16]}  Bd7 {[%clk 0:01:24]} 21. Nd2 {[%clk 0:02:15]}  Qh4 {[%clk 0:01:05]} 22. Nf3 {[%clk 0:02:13]}  Qh5 {[%clk 0:01:03]} 23. g3 {[%clk 0:01:59]}  Ne7 {[%clk 0:00:59]} 24. Be4 {[%clk 0:01:47]}  Qg4 {[%clk 0:00:44]} 25. Bc1 {[%clk 0:01:34]}  Be6 {[%clk 0:00:33]} 26. c4 {[%clk 0:01:31]}  f5 {[%clk 0:00:29]} 27. Nh2 {[%clk 0:01:29]}  Qg6 {[%clk 0:00:29]} 28. Bb1 {[%clk 0:01:28]}  Qf7 {[%clk 0:00:27]} 29. d5 {[%clk 0:01:12]}  Bd7 {[%clk 0:00:27]} 30. Rae2 {[%clk 0:01:13]}  Ng6 {[%clk 0:00:26]} 31. Qc2 {[%clk 0:01:07]}  Rbe8 {[%clk 0:00:24]} 32. c5 {[%clk 0:01:05]}  Rxe2 {[%clk 0:00:20]} 33. Rxe2 {[%clk 0:01:06]}  Be5 {[%clk 0:00:20]} 34. c6 {[%clk 0:01:07]}  bxc6 {[%clk 0:00:20]} 35. dxc6 {[%clk 0:01:08]}  Be6 {[%clk 0:00:21]} 36. Nf3 {[%clk 0:01:08]}  Bb3 {[%clk 0:00:14]} 37. Qd2 {[%clk 0:01:00]}  Bd6 {[%clk 0:00:14]} 38. Nd4 {[%clk 0:00:59]}  Bc4 {[%clk 0:00:13]} 39. Nxf5 {[%clk 0:00:45]}  Bxe2 {[%clk 0:00:12]} 40. Qxe2 {[%clk 0:00:45]}  Ne5 {[%clk 0:00:12]} 41. Ba2 {[%clk 0:00:44]} 1-0


[Site "https://www.chess.com"]

[Event "Titled Tuesday Blitz November 9 2021"]
[White "Suarez Garcia, Carlos"]
[Black "Shirazi, Kamran"]
[WhiteFideId "22230858"]
[BlackFideId "2000733"]
[WhiteElo "2487"]
[BlackElo "2317"]
[Result "1/2-1/2"]
[Round "09"]
[TimeControl "180+1"]
[Date "2021.11.09"]
[WhiteClock "0:00:07"]
[BlackClock "0:00:19"]

1. Nf3 {[%clk 0:02:57]}  d5 {[%clk 0:02:52]} 2. b3 {[%clk 0:02:57]}  c5 {[%clk 0:02:50]} 3. e3 {[%clk 0:02:57]}  Nc6 {[%clk 0:02:49]} 4. Bb2 {[%clk 0:02:57]}  f6 {[%clk 0:02:49]} 5. d4 {[%clk 0:02:55]}  Bg4 {[%clk 0:02:47]} 6. Be2 {[%clk 0:02:55]}  e6 {[%clk 0:02:46]} 7. O-O {[%clk 0:02:55]}  Bd6 {[%clk 0:02:42]} 8. c4 {[%clk 0:02:55]}  Nge7 {[%clk 0:02:41]} 9. dxc5 {[%clk 0:02:54]}  Bxc5 {[%clk 0:02:41]} 10. cxd5 {[%clk 0:02:53]}  Qxd5 {[%clk 0:02:39]} 11. Nc3 {[%clk 0:02:50]}  Qxd1 {[%clk 0:02:38]} 12. Rfxd1 {[%clk 0:02:51]}  O-O {[%clk 0:02:29]} 13. Na4 {[%clk 0:02:46]}  Bb4 {[%clk 0:02:27]} 14. Rd7 {[%clk 0:02:42]}  b6 {[%clk 0:02:19]} 15. a3 {[%clk 0:02:40]}  e5 {[%clk 0:02:18]} 16. Rdd1 {[%clk 0:02:35]}  Ba5 {[%clk 0:02:09]} 17. b4 {[%clk 0:02:33]}  b5 {[%clk 0:02:09]} 18. Bxb5 {[%clk 0:02:26]}  Bb6 {[%clk 0:02:04]} 19. h3 {[%clk 0:02:22]}  Bh5 {[%clk 0:01:59]} 20. Rd6 {[%clk 0:02:18]}  Rac8 {[%clk 0:01:53]} 21. Rc1 {[%clk 0:02:17]}  Nb8 {[%clk 0:01:44]} 22. Nxb6 {[%clk 0:02:07]}  axb6 {[%clk 0:01:42]} 23. Rxb6 {[%clk 0:02:00]}  Rxc1+ {[%clk 0:01:40]} 24. Bxc1 {[%clk 0:02:01]}  Bf7 {[%clk 0:01:35]} 25. Rb7 {[%clk 0:01:54]}  Nd5 {[%clk 0:01:33]} 26. Bd2 {[%clk 0:01:49]}  Rc8 {[%clk 0:01:31]} 27. e4 {[%clk 0:01:44]}  Nc7 {[%clk 0:01:25]} 28. Ba4 {[%clk 0:01:38]}  Kf8 {[%clk 0:01:20]} 29. Be3 {[%clk 0:01:37]}  Ne6 {[%clk 0:01:15]} 30. b5 {[%clk 0:01:21]}  Be8 {[%clk 0:01:10]} 31. Bb3 {[%clk 0:01:17]}  Nd8 {[%clk 0:01:06]} 32. Rb6 {[%clk 0:01:12]}  Nd7 {[%clk 0:01:02]} 33. Rd6 {[%clk 0:01:10]}  Ra8 {[%clk 0:01:01]} 34. a4 {[%clk 0:01:07]}  Nb7 {[%clk 0:01:01]} 35. Bd5 {[%clk 0:01:01]}  Ke7 {[%clk 0:00:39]} 36. Bxb7 {[%clk 0:00:55]}  Rb8 {[%clk 0:00:39]} 37. Rxd7+ {[%clk 0:00:55]}  Bxd7 {[%clk 0:00:39]} 38. Bc5+ {[%clk 0:00:55]}  Kd8 {[%clk 0:00:38]} 39. Bd5 {[%clk 0:00:55]}  Bxb5 {[%clk 0:00:37]} 40. axb5 {[%clk 0:00:55]}  Rxb5 {[%clk 0:00:38]} 41. Bf8 {[%clk 0:00:55]}  g6 {[%clk 0:00:38]} 42. Bh6 {[%clk 0:00:51]}  Ke7 {[%clk 0:00:36]} 43. g4 {[%clk 0:00:51]}  Rb1+ {[%clk 0:00:36]} 44. Kg2 {[%clk 0:00:51]}  Rb2 {[%clk 0:00:36]} 45. Be3 {[%clk 0:00:51]}  Rc2 {[%clk 0:00:36]} 46. h4 {[%clk 0:00:51]}  Kd6 {[%clk 0:00:32]} 47. h5 {[%clk 0:00:51]}  f5 {[%clk 0:00:31]} 48. gxf5 {[%clk 0:00:43]}  gxf5 {[%clk 0:00:30]} 49. Bg5 {[%clk 0:00:37]}  Rc8 {[%clk 0:00:28]} 50. Nh4 {[%clk 0:00:34]}  fxe4 {[%clk 0:00:28]} 51. Bxe4 {[%clk 0:00:35]}  Rg8 {[%clk 0:00:27]} 52. Nf5+ {[%clk 0:00:28]}  Kd7 {[%clk 0:00:24]} 53. Bc6+ {[%clk 0:00:27]}  Kc7 {[%clk 0:00:22]} 54. Be4 {[%clk 0:00:14]}  Rxg5+ {[%clk 0:00:22]} 55. Kf3 {[%clk 0:00:14]}  Rxh5 {[%clk 0:00:22]} 56. Ng3 {[%clk 0:00:14]}  Rh4 {[%clk 0:00:21]} 57. Nf5 {[%clk 0:00:12]}  Rf4+ {[%clk 0:00:21]} 58. Ke3 {[%clk 0:00:12]}  h5 {[%clk 0:00:21]} 59. f3 {[%clk 0:00:11]}  h4 {[%clk 0:00:21]} 60. Kf2 {[%clk 0:00:12]}  Kb6 {[%clk 0:00:19]} 61. Kg2 {[%clk 0:00:12]}  Kc5 {[%clk 0:00:19]} 62. Kh3 {[%clk 0:00:13]}  Kc4 {[%clk 0:00:19]} 63. Nxh4 {[%clk 0:00:13]}  Kd4 {[%clk 0:00:19]} 64. Nf5+ {[%clk 0:00:11]}  Kc3 {[%clk 0:00:19]} 65. Kg3 {[%clk 0:00:12]}  Kd2 {[%clk 0:00:19]} 66. Ne7 {[%clk 0:00:12]}  Rf6 {[%clk 0:00:17]} 67. Ng6 {[%clk 0:00:11]}  Re6 {[%clk 0:00:17]} 68. Kg4 {[%clk 0:00:12]}  Re8 {[%clk 0:00:17]} 69. Kf5 {[%clk 0:00:11]}  Ke3 {[%clk 0:00:18]} 70. Nxe5 {[%clk 0:00:11]}  Rf8+ {[%clk 0:00:18]} 71. Kg4 {[%clk 0:00:10]}  Rf4+ {[%clk 0:00:17]} 72. Kg3 {[%clk 0:00:08]}  Rxe4 {[%clk 0:00:18]} 73. fxe4 {[%clk 0:00:07]}  Kxe4 {[%clk 0:00:19]} 1/2-1/2


[Site "https://www.chess.com"]

[Event "Titled Tuesday Blitz November 9 2021"]
[White "Tillyaev, Ulugbek"]
[Black "Babazada, Khazar"]
[WhiteFideId "14202441"]
[BlackFideId "13413554"]
[WhiteElo "2341"]
[BlackElo "2302"]
[Result "0-1"]
[Round "09"]
[TimeControl "180+1"]
[Date "2021.11.09"]
[WhiteClock "0:00:17"]
[BlackClock "0:01:23"]

1. d4 {[%clk 0:02:56]}  Nf6 {[%clk 0:02:59]} 2. c4 {[%clk 0:02:56]}  e6 {[%clk 0:02:59]} 3. Nc3 {[%clk 0:02:56]}  Bb4 {[%clk 0:02:59]} 4. e3 {[%clk 0:02:56]}  b6 {[%clk 0:02:57]} 5. Bd3 {[%clk 0:02:56]}  Bb7 {[%clk 0:02:57]} 6. Ne2 {[%clk 0:02:52]}  O-O {[%clk 0:02:56]} 7. O-O {[%clk 0:02:52]}  d5 {[%clk 0:02:56]} 8. a3 {[%clk 0:02:48]}  Bd6 {[%clk 0:02:56]} 9. Ng3 {[%clk 0:02:45]}  Re8 {[%clk 0:02:54]} 10. b4 {[%clk 0:02:39]}  Bf8 {[%clk 0:02:51]} 11. Bb2 {[%clk 0:02:37]}  dxc4 {[%clk 0:02:48]} 12. Bxc4 {[%clk 0:02:37]}  Nbd7 {[%clk 0:02:49]} 13. Qe2 {[%clk 0:02:33]}  a5 {[%clk 0:02:44]} 14. b5 {[%clk 0:02:31]}  Nd5 {[%clk 0:02:44]} 15. Rac1 {[%clk 0:02:20]}  Rc8 {[%clk 0:02:38]} 16. e4 {[%clk 0:02:06]}  Nf4 {[%clk 0:02:38]} 17. Qg4 {[%clk 0:02:02]}  Ng6 {[%clk 0:02:39]} 18. Rfd1 {[%clk 0:02:00]}  Nf6 {[%clk 0:02:22]} 19. Qf3 {[%clk 0:01:51]}  Nh4 {[%clk 0:02:21]} 20. Qe2 {[%clk 0:01:50]}  Ng6 {[%clk 0:02:14]} 21. Qf3 {[%clk 0:01:31]}  Bd6 {[%clk 0:02:03]} 22. Ba2 {[%clk 0:01:21]}  Bf4 {[%clk 0:02:02]} 23. Rb1 {[%clk 0:01:19]}  Qe7 {[%clk 0:02:02]} 24. Qe2 {[%clk 0:01:11]}  Bh6 {[%clk 0:02:00]} 25. d5 {[%clk 0:00:57]}  Kh8 {[%clk 0:01:55]} 26. dxe6 {[%clk 0:00:56]}  fxe6 {[%clk 0:01:56]} 27. Qe1 {[%clk 0:00:45]}  Rf8 {[%clk 0:01:53]} 28. Bc1 {[%clk 0:00:38]}  Nf4 {[%clk 0:01:49]} 29. f3 {[%clk 0:00:26]}  Qc5+ {[%clk 0:01:45]} 30. Kh1 {[%clk 0:00:26]}  N6h5 {[%clk 0:01:41]} 31. e5 {[%clk 0:00:25]}  Nxg3+ {[%clk 0:01:35]} 32. hxg3 {[%clk 0:00:23]}  Nxg2 {[%clk 0:01:34]} 33. Kxg2 {[%clk 0:00:24]}  Bxf3+ {[%clk 0:01:31]} 34. Kh2 {[%clk 0:00:21]}  Bxd1 {[%clk 0:01:31]} 35. Bxh6 {[%clk 0:00:20]}  Rf2+ {[%clk 0:01:30]} 36. Kh3 {[%clk 0:00:19]}  Bc2 {[%clk 0:01:22]} 37. Be3 {[%clk 0:00:19]}  Bf5+ {[%clk 0:01:22]} 38. g4 {[%clk 0:00:18]}  Rf3+ {[%clk 0:01:22]} 39. Kh4 {[%clk 0:00:17]}  Rxe3 {[%clk 0:01:23]} 0-1


[Site "https://www.chess.com"]

[Event "Titled Tuesday Blitz November 9 2021"]
[White "Urazayev, Arystanbek"]
[Black "Matinian, Nikita"]
[WhiteFideId "13709810"]
[BlackFideId "24129100"]
[WhiteElo "2321"]
[BlackElo "2422"]
[Result "0-1"]
[Round "09"]
[TimeControl "180+1"]
[Date "2021.11.09"]
[WhiteClock "0:00:46"]
[BlackClock "0:00:25"]

1. e4 {[%clk 0:03:00]}  c5 {[%clk 0:02:58]} 2. Nf3 {[%clk 0:03:00]}  d6 {[%clk 0:02:57]} 3. d4 {[%clk 0:03:01]}  cxd4 {[%clk 0:02:55]} 4. Nxd4 {[%clk 0:03:02]}  Nf6 {[%clk 0:02:56]} 5. Nc3 {[%clk 0:03:02]}  g6 {[%clk 0:02:55]} 6. Be2 {[%clk 0:03:01]}  Bg7 {[%clk 0:02:55]} 7. O-O {[%clk 0:03:01]}  O-O {[%clk 0:02:56]} 8. Be3 {[%clk 0:02:57]}  Nc6 {[%clk 0:02:56]} 9. Nb3 {[%clk 0:02:58]}  Be6 {[%clk 0:02:54]} 10. f4 {[%clk 0:02:54]}  Rc8 {[%clk 0:02:47]} 11. Bf3 {[%clk 0:02:49]}  Na5 {[%clk 0:02:44]} 12. Nxa5 {[%clk 0:02:49]}  Qxa5 {[%clk 0:02:45]} 13. Qd2 {[%clk 0:02:49]}  b5 {[%clk 0:02:38]} 14. a3 {[%clk 0:02:48]}  Rfd8 {[%clk 0:02:35]} 15. Rac1 {[%clk 0:02:40]}  Rd7 {[%clk 0:01:46]} 16. Bd4 {[%clk 0:02:38]}  Rc4 {[%clk 0:01:42]} 17. Bf2 {[%clk 0:02:06]}  Ng4 {[%clk 0:01:30]} 18. f5 {[%clk 0:01:55]}  gxf5 {[%clk 0:01:24]} 19. exf5 {[%clk 0:01:55]}  Bxf5 {[%clk 0:01:25]} 20. Bd5 {[%clk 0:01:51]}  Bh6 {[%clk 0:00:49]} 21. Qe2 {[%clk 0:01:38]}  Bxc1 {[%clk 0:00:49]} 22. Bxc4 {[%clk 0:01:38]}  bxc4 {[%clk 0:00:48]} 23. Rxc1 {[%clk 0:01:35]}  Nxf2 {[%clk 0:00:47]} 24. Qxf2 {[%clk 0:01:35]}  Bg6 {[%clk 0:00:45]} 25. Rd1 {[%clk 0:01:29]}  Qb6 {[%clk 0:00:44]} 26. Qxb6 {[%clk 0:01:27]}  axb6 {[%clk 0:00:45]} 27. Rd2 {[%clk 0:01:28]}  Kf8 {[%clk 0:00:38]} 28. Kf2 {[%clk 0:01:16]}  e6 {[%clk 0:00:38]} 29. Ke3 {[%clk 0:01:14]}  Ke7 {[%clk 0:00:38]} 30. g4 {[%clk 0:01:12]}  h5 {[%clk 0:00:37]} 31. gxh5 {[%clk 0:01:12]}  Bxh5 {[%clk 0:00:38]} 32. Kd4 {[%clk 0:01:09]}  d5 {[%clk 0:00:36]} 33. Na4 {[%clk 0:01:07]}  Rb7 {[%clk 0:00:35]} 34. Kc3 {[%clk 0:01:03]}  Kd6 {[%clk 0:00:33]} 35. Kb4 {[%clk 0:01:03]}  f5 {[%clk 0:00:33]} 36. Nc3 {[%clk 0:01:00]}  f4 {[%clk 0:00:32]} 37. Nb5+ {[%clk 0:00:56]}  Ke5 {[%clk 0:00:31]} 38. Nd4 {[%clk 0:00:54]}  Kf6 {[%clk 0:00:29]} 39. Kb5 {[%clk 0:00:50]}  e5 {[%clk 0:00:27]} 40. Nc6 {[%clk 0:00:50]}  d4 {[%clk 0:00:24]} 41. Kxc4 {[%clk 0:00:50]}  Rc7 {[%clk 0:00:25]} 42. Kb5 {[%clk 0:00:46]}  Be8 {[%clk 0:00:25]} 0-1


[Site "https://www.chess.com"]

[Event "Titled Tuesday Blitz November 9 2021"]
[White "Visakh N R"]
[Black "Shimelkov, Vasiliy"]
[WhiteFideId "25012223"]
[BlackFideId "13701630"]
[WhiteElo "2454"]
[BlackElo "2073"]
[Result "1/2-1/2"]
[Round "09"]
[TimeControl "180+1"]
[Date "2021.11.09"]
[WhiteClock "0:00:06"]
[BlackClock "0:00:14"]

1. e4 {[%clk 0:03:00]}  c6 {[%clk 0:03:00]} 2. Nf3 {[%clk 0:02:56]}  d5 {[%clk 0:03:00]} 3. Nc3 {[%clk 0:02:57]}  dxe4 {[%clk 0:03:00]} 4. Nxe4 {[%clk 0:02:57]}  Nf6 {[%clk 0:03:00]} 5. Nxf6+ {[%clk 0:02:46]}  exf6 {[%clk 0:02:59]} 6. d4 {[%clk 0:02:44]}  Bd6 {[%clk 0:02:58]} 7. c3 {[%clk 0:02:40]}  O-O {[%clk 0:02:56]} 8. Be3 {[%clk 0:02:40]}  Bg4 {[%clk 0:02:55]} 9. Be2 {[%clk 0:02:38]}  b5 {[%clk 0:02:49]} 10. O-O {[%clk 0:02:37]}  Nd7 {[%clk 0:02:48]} 11. a4 {[%clk 0:02:37]}  a6 {[%clk 0:02:47]} 12. Nd2 {[%clk 0:02:36]}  Bxe2 {[%clk 0:02:44]} 13. Qxe2 {[%clk 0:02:36]}  Nb6 {[%clk 0:02:42]} 14. axb5 {[%clk 0:02:33]}  axb5 {[%clk 0:02:41]} 15. Rxa8 {[%clk 0:02:32]}  Qxa8 {[%clk 0:02:40]} 16. Ne4 {[%clk 0:02:33]}  Bc7 {[%clk 0:02:36]} 17. Qf3 {[%clk 0:02:25]}  Qd8 {[%clk 0:02:30]} 18. Bf4 {[%clk 0:02:21]}  Nd5 {[%clk 0:02:26]} 19. Bxc7 {[%clk 0:02:21]}  Qxc7 {[%clk 0:02:26]} 20. Nc5 {[%clk 0:02:21]}  Ra8 {[%clk 0:02:22]} 21. Re1 {[%clk 0:02:20]}  Qd6 {[%clk 0:02:16]} 22. g3 {[%clk 0:02:20]}  g6 {[%clk 0:02:15]} 23. h4 {[%clk 0:01:46]}  f5 {[%clk 0:02:06]} 24. Nd3 {[%clk 0:01:37]}  h5 {[%clk 0:02:02]} 25. Re5 {[%clk 0:01:31]}  Ra7 {[%clk 0:01:54]} 26. Nf4 {[%clk 0:01:24]}  Nxf4 {[%clk 0:01:47]} 27. Qxf4 {[%clk 0:01:25]}  Kg7 {[%clk 0:01:38]} 28. Rxf5 {[%clk 0:01:21]}  Qe6 {[%clk 0:01:31]} 29. Qe5+ {[%clk 0:01:15]}  Qxe5 {[%clk 0:01:25]} 30. Rxe5 {[%clk 0:01:16]}  Ra2 {[%clk 0:01:20]} 31. b4 {[%clk 0:01:15]}  Kf6 {[%clk 0:01:15]} 32. Rc5 {[%clk 0:01:13]}  Ra6 {[%clk 0:01:13]} 33. Kg2 {[%clk 0:01:08]}  Ke6 {[%clk 0:01:12]} 34. Kf3 {[%clk 0:01:08]}  Kd6 {[%clk 0:01:10]} 35. Kf4 {[%clk 0:01:03]}  Ra2 {[%clk 0:01:08]} 36. f3 {[%clk 0:01:02]}  Re2 {[%clk 0:01:07]} 37. d5 {[%clk 0:00:58]}  cxd5 {[%clk 0:01:04]} 38. Rxb5 {[%clk 0:00:58]}  Rc2 {[%clk 0:01:01]} 39. Rc5 {[%clk 0:00:57]}  f6 {[%clk 0:00:57]} 40. g4 {[%clk 0:00:53]}  hxg4 {[%clk 0:00:56]} 41. fxg4 {[%clk 0:00:54]}  Rf2+ {[%clk 0:00:55]} 42. Kg3 {[%clk 0:00:54]}  Rc2 {[%clk 0:00:53]} 43. h5 {[%clk 0:00:53]}  gxh5 {[%clk 0:00:51]} 44. gxh5 {[%clk 0:00:54]}  Rc1 {[%clk 0:00:50]} 45. Rc8 {[%clk 0:00:41]}  Rh1 {[%clk 0:00:46]} 46. Rh8 {[%clk 0:00:35]}  Ke5 {[%clk 0:00:42]} 47. b5 {[%clk 0:00:31]}  Rb1 {[%clk 0:00:37]} 48. Rb8 {[%clk 0:00:25]}  Kf5 {[%clk 0:00:35]} 49. b6 {[%clk 0:00:24]}  Rb3 {[%clk 0:00:31]} 50. Kf2 {[%clk 0:00:24]}  Rxc3 {[%clk 0:00:24]} 51. b7 {[%clk 0:00:23]}  Rc7 {[%clk 0:00:21]} 52. h6 {[%clk 0:00:19]}  d4 {[%clk 0:00:18]} 53. Ke2 {[%clk 0:00:19]}  Kf4 {[%clk 0:00:16]} 54. Kd3 {[%clk 0:00:16]}  Rd7 {[%clk 0:00:15]} 55. Kd2 {[%clk 0:00:15]}  Re7 {[%clk 0:00:14]} 56. Kc2 {[%clk 0:00:09]}  Rd7 {[%clk 0:00:14]} 57. Kd3 {[%clk 0:00:09]}  Kf5 {[%clk 0:00:14]} 58. Kd2 {[%clk 0:00:05]}  Kf4 {[%clk 0:00:13]} 59. Kd3 {[%clk 0:00:05]}  Kf5 {[%clk 0:00:13]} 60. Kd2 {[%clk 0:00:05]}  Kf4 {[%clk 0:00:14]} 61. Kd3 {[%clk 0:00:06]} 1/2-1/2


[Site "https://www.chess.com"]

[Event "Titled Tuesday Blitz November 9 2021"]
[White "Xiong, Jeffery"]
[Black "Zierk, Steven"]
[WhiteFideId "2047640"]
[BlackFideId "2034255"]
[WhiteElo "2699"]
[BlackElo "2494"]
[Result "0-1"]
[Round "09"]
[TimeControl "180+1"]
[Date "2021.11.09"]
[WhiteClock "0:00:37"]
[BlackClock "0:00:03"]

1. d4 {[%clk 0:03:00]}  d5 {[%clk 0:02:56]} 2. Nf3 {[%clk 0:03:01]}  Nf6 {[%clk 0:02:56]} 3. Bf4 {[%clk 0:03:01]}  c5 {[%clk 0:02:56]} 4. e3 {[%clk 0:03:01]}  e6 {[%clk 0:02:55]} 5. Nbd2 {[%clk 0:02:54]}  Bd6 {[%clk 0:02:55]} 6. dxc5 {[%clk 0:02:53]}  Bxc5 {[%clk 0:02:54]} 7. Bd3 {[%clk 0:02:53]}  Nc6 {[%clk 0:02:53]} 8. O-O {[%clk 0:02:53]}  O-O {[%clk 0:02:50]} 9. c4 {[%clk 0:02:53]}  Qe7 {[%clk 0:02:32]} 10. a3 {[%clk 0:02:52]}  a5 {[%clk 0:02:06]} 11. Bg3 {[%clk 0:02:46]}  Rd8 {[%clk 0:02:03]} 12. Qe2 {[%clk 0:02:43]}  d4 {[%clk 0:01:54]} 13. exd4 {[%clk 0:02:40]}  Nxd4 {[%clk 0:01:52]} 14. Nxd4 {[%clk 0:02:40]}  Bxd4 {[%clk 0:01:52]} 15. Nf3 {[%clk 0:02:40]}  Bxb2 {[%clk 0:01:30]} 16. Bxh7+ {[%clk 0:02:40]}  Nxh7 {[%clk 0:01:26]} 17. Qxb2 {[%clk 0:02:41]}  Qc5 {[%clk 0:01:17]} 18. Rfd1 {[%clk 0:02:32]}  Bd7 {[%clk 0:00:56]} 19. Qxb7 {[%clk 0:02:27]}  Ba4 {[%clk 0:00:52]} 20. Rxd8+ {[%clk 0:02:28]}  Rxd8 {[%clk 0:00:53]} 21. Ne5 {[%clk 0:02:24]}  Be8 {[%clk 0:00:43]} 22. h3 {[%clk 0:02:13]}  f6 {[%clk 0:00:37]} 23. Ng4 {[%clk 0:02:03]}  Qxc4 {[%clk 0:00:36]} 24. Ne3 {[%clk 0:02:01]}  Qc6 {[%clk 0:00:31]} 25. Qe7 {[%clk 0:01:58]}  Rd3 {[%clk 0:00:24]} 26. Rb1 {[%clk 0:01:57]}  Qd7 {[%clk 0:00:24]} 27. Qc5 {[%clk 0:01:56]}  Ng5 {[%clk 0:00:19]} 28. Rb8 {[%clk 0:01:51]}  Ne4 {[%clk 0:00:17]} 29. Qh5 {[%clk 0:01:43]}  Kf8 {[%clk 0:00:10]} 30. Ng4 {[%clk 0:00:38]}  Nxg3 {[%clk 0:00:07]} 31. fxg3 {[%clk 0:00:39]}  Qa7+ {[%clk 0:00:07]} 32. Kh2 {[%clk 0:00:36]}  Qxb8 {[%clk 0:00:07]} 33. Qh8+ {[%clk 0:00:36]}  Kf7 {[%clk 0:00:04]} 34. Qh7 {[%clk 0:00:37]}  Qxg3+ {[%clk 0:00:03]} 0-1


[Site "https://www.chess.com"]

[Event "Titled Tuesday Blitz November 9 2021"]
[White "Afanasiev, Nikita"]
[Black "Aditya Mittal"]
[WhiteFideId "24183555"]
[BlackFideId "35042025"]
[WhiteElo "2577"]
[BlackElo "2245"]
[Result "0-1"]
[Round "10"]
[TimeControl "180+1"]
[Date "2021.11.09"]
[WhiteClock "0:00:58"]
[BlackClock "0:00:26"]

1. e4 {[%clk 0:03:00]}  c5 {[%clk 0:03:00]} 2. Nf3 {[%clk 0:02:57]}  d6 {[%clk 0:03:01]} 3. d4 {[%clk 0:02:55]}  cxd4 {[%clk 0:03:02]} 4. Nxd4 {[%clk 0:02:56]}  Nf6 {[%clk 0:03:02]} 5. Nc3 {[%clk 0:02:56]}  a6 {[%clk 0:03:03]} 6. Be3 {[%clk 0:02:54]}  e5 {[%clk 0:03:03]} 7. Nb3 {[%clk 0:02:54]}  Be7 {[%clk 0:03:04]} 8. Be2 {[%clk 0:02:49]}  Be6 {[%clk 0:03:03]} 9. O-O {[%clk 0:02:48]}  O-O {[%clk 0:03:03]} 10. Bf3 {[%clk 0:02:48]}  b5 {[%clk 0:02:59]} 11. Nd5 {[%clk 0:02:42]}  Nbd7 {[%clk 0:02:35]} 12. Rc1 {[%clk 0:02:39]}  a5 {[%clk 0:02:30]} 13. Nd2 {[%clk 0:02:30]}  Nxd5 {[%clk 0:02:10]} 14. exd5 {[%clk 0:02:30]}  Bf5 {[%clk 0:02:11]} 15. c4 {[%clk 0:02:22]}  b4 {[%clk 0:02:05]} 16. g4 {[%clk 0:02:05]}  Bd3 {[%clk 0:01:57]} 17. Re1 {[%clk 0:02:05]}  f5 {[%clk 0:01:57]} 18. gxf5 {[%clk 0:02:05]}  Bxf5 {[%clk 0:01:49]} 19. Bg4 {[%clk 0:02:01]}  Bg5 {[%clk 0:01:44]} 20. Kh1 {[%clk 0:01:45]}  Bxe3 {[%clk 0:01:34]} 21. Rxe3 {[%clk 0:01:45]}  Nc5 {[%clk 0:01:34]} 22. Nb3 {[%clk 0:01:28]}  Qh4 {[%clk 0:01:27]} 23. Bxf5 {[%clk 0:01:12]}  Rxf5 {[%clk 0:01:28]} 24. Nxc5 {[%clk 0:01:12]}  Rxf2 {[%clk 0:01:14]} 25. Qg1 {[%clk 0:01:11]}  dxc5 {[%clk 0:01:15]} 26. Qg3 {[%clk 0:01:10]}  Qxg3 {[%clk 0:01:09]} 27. hxg3 {[%clk 0:01:09]}  Rxb2 {[%clk 0:01:07]} 28. Rxe5 {[%clk 0:01:07]}  Rxa2 {[%clk 0:01:07]} 29. d6 {[%clk 0:01:07]}  Rd2 {[%clk 0:00:51]} 30. Rxc5 {[%clk 0:01:06]}  Rxd6 {[%clk 0:00:50]} 31. Ra1 {[%clk 0:01:06]}  b3 {[%clk 0:00:39]} 32. Rb5 {[%clk 0:01:05]}  Rd3 {[%clk 0:00:27]} 33. Kh2 {[%clk 0:01:04]}  a4 {[%clk 0:00:27]} 34. Ra3 {[%clk 0:01:03]}  Rd2+ {[%clk 0:00:26]} 35. Kh3 {[%clk 0:00:58]}  Ra2 {[%clk 0:00:26]} 0-1


[Site "https://www.chess.com"]